Workbook

Sheet Lagerlista
K2: Markera artiklar som ska beställas? | L2: Ja
B3: För ombeställning | C3: Lager-ID | D3: Namn | E3: Beskrivning | F3: Enhetspris | G3: Antal i lager | H3: Lagervärde | I3: Ordernivå | J3: Ordertid i dagar | K3: Antal i nybeställning | L3: Utgått?
B4: =IFERROR((Lager_Lista_Tabell[[#This Row],[Antal i lager]]<=Lager_Lista_Tabell[[#This Row],[Ordernivå]])*(Lager_Lista_Tabell[[#This Row],[Utgått?]]="")*vrdMarkering,0) -> 1 | C4: IN0001 | D4: Artikel 1 | E4: Beskr. 1 | F4: 51.00 kr | G4: 25 | H4: =Lager_Lista_Tabell[[#This Row],[Enhetspris]]*Lager_Lista_Tabell[[#This Row],[Antal i lager]] -> 1,275.00 kr | I4: 29 | J4: 13 | K4: 50
B5: =IFERROR((Lager_Lista_Tabell[[#This Row],[Antal i lager]]<=Lager_Lista_Tabell[[#This Row],[Ordernivå]])*(Lager_Lista_Tabell[[#This Row],[Utgått?]]="")*vrdMarkering,0) -> 1 | C5: IN0002 | D5: Objekt 2 | E5: Beskr. 2 | F5: 93.00 kr | G5: 132 | H5: =Lager_Lista_Tabell[[#This Row],[Enhetspris]]*Lager_Lista_Tabell[[#This Row],[Antal i lager]] -> 12,276.00 kr | I5: 231 | J5: 4 | K5: 50
B6: =IFERROR((Lager_Lista_Tabell[[#This Row],[Antal i lager]]<=Lager_Lista_Tabell[[#This Row],[Ordernivå]])*(Lager_Lista_Tabell[[#This Row],[Utgått?]]="")*vrdMarkering,0) -> 0 | C6: IN0003 | D6: Objekt 3 | E6: Beskr. 3 | F6: 57.00 kr | G6: 151 | H6: =Lager_Lista_Tabell[[#This Row],[Enhetspris]]*Lager_Lista_Tabell[[#This Row],[Antal i lager]] -> 8,607.00 kr | I6: 114 | J6: 11 | K6: 150
B7: =IFERROR((Lager_Lista_Tabell[[#This Row],[Antal i lager]]<=Lager_Lista_Tabell[[#This Row],[Ordernivå]])*(Lager_Lista_Tabell[[#This Row],[Utgått?]]="")*vrdMarkering,0) -> 0 | C7: IN0004 | D7: Artikel 4 | E7: Beskr. 4 | F7: 19.00 kr | G7: 186 | H7: =Lager_Lista_Tabell[[#This Row],[Enhetspris]]*Lager_Lista_Tabell[[#This Row],[Antal i lager]] -> 3,534.00 kr | I7: 158 | J7: 6 | K7: 50
B8: =IFERROR((Lager_Lista_Tabell[[#This Row],[Antal i lager]]<=Lager_Lista_Tabell[[#This Row],[Ordernivå]])*(Lager_Lista_Tabell[[#This Row],[Utgått?]]="")*vrdMarkering,0) -> 0 | C8: IN0005 | D8: Artikel 5 | E8: Beskr. 5 | F8: 75.00 kr | G8: 62 | H8: =Lager_Lista_Tabell[[#This Row],[Enhetspris]]*Lager_Lista_Tabell[[#This Row],[Antal i lager]] -> 4,650.00 kr | I8: 39 | J8: 12 | K8: 50
B9: =IFERROR((Lager_Lista_Tabell[[#This Row],[Antal i lager]]<=Lager_Lista_Tabell[[#This Row],[Ordernivå]])*(Lager_Lista_Tabell[[#This Row],[Utgått?]]="")*vrdMarkering,0) -> 1 | C9: IN0006 | D9: Artikel 6 | E9: Beskr. 6 | F9: 11.00 kr | G9: 5 | H9: =Lager_Lista_Tabell[[#This Row],[Enhetspris]]*Lager_Lista_Tabell[[#This Row],[Antal i lager]] -> 55.00 kr | I9: 9 | J9: 13 | K9: 150
B10: =IFERROR((Lager_Lista_Tabell[[#This Row],[Antal i lager]]<=Lager_Lista_Tabell[[#This Row],[Ordernivå]])*(Lager_Lista_Tabell[[#This Row],[Utgått?]]="")*vrdMarkering,0) -> 0 | C10: IN0007 | D10: Artikel 7 | E10: Beskr. 7 | F10: 56.00 kr | G10: 58 | H10: =Lager_Lista_Tabell[[#This Row],[Enhetspris]]*Lager_Lista_Tabell[[#This Row],[Antal i lager]] -> 3,248.00 kr | I10: 109 | J10: 7 | K10: 100 | L10: Ja
B11: =IFERROR((Lager_Lista_Tabell[[#This Row],[Antal i lager]]<=Lager_Lista_Tabell[[#This Row],[Ordernivå]])*(Lager_Lista_Tabell[[#This Row],[Utgått?]]="")*vrdMarkering,0) -> 1 | C11: IN0008 | D11: Artikel 8 | E11: Beskr. 8 | F11: 38.00 kr | G11: 101 | H11: =Lager_Lista_Tabell[[#This Row],[Enhetspris]]*Lager_Lista_Tabell[[#This Row],[Antal i lager]] -> 3,838.00 kr | I11: 162 | J11: 3 | K11: 100
B12: =IFERROR((Lager_Lista_Tabell[[#This Row],[Antal i lager]]<=Lager_Lista_Tabell[[#This Row],[Ordernivå]])*(Lager_Lista_Tabell[[#This Row],[Utgått?]]="")*vrdMarkering,0) -> 0 | C12: IN0009 | D12: Artikel 9 | E12: Beskr. 9 | F12: 59.00 kr | G12: 122 | H12: =Lager_Lista_Tabell[[#This Row],[Enhetspris]]*Lager_Lista_Tabell[[#This Row],[Antal i lager]] -> 7,198.00 kr | I12: 82 | J12: 3 | K12: 150
B13: =IFERROR((Lager_Lista_Tabell[[#This Row],[Antal i lager]]<=Lager_Lista_Tabell[[#This Row],[Ordernivå]])*(Lager_Lista_Tabell[[#This Row],[Utgått?]]="")*vrdMarkering,0) -> 1 | C13: IN0010 | D13: Artikel 10 | E13: Beskr. 10 | F13: 50.00 kr | G13: 175 | H13: =Lager_Lista_Tabell[[#This Row],[Enhetspris]]*Lager_Lista_Tabell[[#This Row],[Antal i lager]] -> 8,750.00 kr | I13: 283 | J13: 8 | K13: 150
B14: =IFERROR((Lager_Lista_Tabell[[#This Row],[Antal i lager]]<=Lager_Lista_Tabell[[#This Row],[Ordernivå]])*(Lager_Lista_Tabell[[#This Row],[Utgått?]]="")*vrdMarkering,0) -> 1 | C14: IN0011 | D14: Artikel 11 | E14: Beskr. 11 | F14: 59.00 kr | G14: 176 | H14: =Lager_Lista_Tabell[[#This Row],[Enhetspris]]*Lager_Lista_Tabell[[#This Row],[Antal i lager]] -> 10,384.00 kr | I14: 229 | J14: 1 | K14: 100
B15: =IFERROR((Lager_Lista_Tabell[[#This Row],[Antal i lager]]<=Lager_Lista_Tabell[[#This Row],[Ordernivå]])*(Lager_Lista_Tabell[[#This Row],[Utgått?]]="")*vrdMarkering,0) -> 1 | C15: IN0012 | D15: Artikel 12 | E15: Beskr. 12 | F15: 18.00 kr | G15: 22 | H15: =Lager_Lista_Tabell[[#This Row],[Enhetspris]]*Lager_Lista_Tabell[[#This Row],[Antal i lager]] -> 396.00 kr | I15: 36 | J15: 12 | K15: 50
B16: =IFERROR((Lager_Lista_Tabell[[#This Row],[Antal i lager]]<=Lager_Lista_Tabell[[#This Row],[Ordernivå]])*(Lager_Lista_Tabell[[#This Row],[Utgått?]]="")*vrdMarkering,0) -> 1 | C16: IN0013 | D16: Artikel 13 | E16: Beskr. 13 | F16: 26.00 kr | G16: 72 | H16: =Lager_Lista_Tabell[[#This Row],[Enhetspris]]*Lager_Lista_Tabell[[#This Row],[Antal i lager]] -> 1,872.00 kr | I16: 102 | J16: 9 | K16: 100
B17: =IFERROR((Lager_Lista_Tabell[[#This Row],[Antal i lager]]<=Lager_Lista_Tabell[[#This Row],[Ordernivå]])*(Lager_Lista_Tabell[[#This Row],[Utgått?]]="")*vrdMarkering,0) -> 1 | C17: IN0014 | D17: Artikel 14 | E17: Beskr. 14 | F17: 42.00 kr | G17: 62 | H17: =Lager_Lista_Tabell[[#This Row],[Enhetspris]]*Lager_Lista_Tabell[[#This Row],[Antal i lager]] -> 2,604.00 kr | I17: 83 | J17: 2 | K17: 100
B18: =IFERROR((Lager_Lista_Tabell[[#This Row],[Antal i lager]]<=Lager_Lista_Tabell[[#This Row],[Ordernivå]])*(Lager_Lista_Tabell[[#This Row],[Utgått?]]="")*vrdMarkering,0) -> 0 | C18: IN0015 | D18: Artikel 15 | E18: Beskr. 15 | F18: 32.00 kr | G18: 46 | H18: =Lager_Lista_Tabell[[#This Row],[Enhetspris]]*Lager_Lista_Tabell[[#This Row],[Antal i lager]] -> 1,472.00 kr | I18: 23 | J18: 15 | K18: 50
B19: =IFERROR((Lager_Lista_Tabell[[#This Row],[Antal i lager]]<=Lager_Lista_Tabell[[#This Row],[Ordernivå]])*(Lager_Lista_Tabell[[#This Row],[Utgått?]]="")*vrdMarkering,0) -> 1 | C19: IN0016 | D19: Artikel 16 | E19: Beskr. 16 | F19: 90.00 kr | G19: 96 | H19: =Lager_Lista_Tabell[[#This Row],[Enhetspris]]*Lager_Lista_Tabell[[#This Row],[Antal i lager]] -> 8,640.00 kr | I19: 180 | J19: 3 | K19: 50
B20: =IFERROR((Lager_Lista_Tabell[[#This Row],[Antal i lager]]<=Lager_Lista_Tabell[[#This Row],[Ordernivå]])*(Lager_Lista_Tabell[[#This Row],[Utgått?]]="")*vrdMarkering,0) -> 0 | C20: IN0017 | D20: Artikel 17 | E20: Beskr. 17 | F20: 97.00 kr | G20: 57 | H20: =Lager_Lista_Tabell[[#This Row],[Enhetspris]]*Lager_Lista_Tabell[[#This Row],[Antal i lager]] -> 5,529.00 kr | I20: 98 | J20: 12 | K20: 50 | L20: Ja
B21: =IFERROR((Lager_Lista_Tabell[[#This Row],[Antal i lager]]<=Lager_Lista_Tabell[[#This Row],[Ordernivå]])*(Lager_Lista_Tabell[[#This Row],[Utgått?]]="")*vrdMarkering,0) -> 1 | C21: IN0018 | D21: Artikel 18 | E21: Beskr. 18 | F21: 12.00 kr | G21: 6 | H21: =Lager_Lista_Tabell[[#This Row],[Enhetspris]]*Lager_Lista_Tabell[[#This Row],[Antal i lager]] -> 72.00 kr | I21: 7 | J21: 13 | K21: 50
B22: =IFERROR((Lager_Lista_Tabell[[#This Row],[Antal i lager]]<=Lager_Lista_Tabell[[#This Row],[Ordernivå]])*(Lager_Lista_Tabell[[#This Row],[Utgått?]]="")*vrdMarkering,0) -> 1 | C22: IN0019 | D22: Artikel 19 | E22: Beskr. 19 | F22: 82.00 kr | G22: 143 | H22: =Lager_Lista_Tabell[[#This Row],[Enhetspris]]*Lager_Lista_Tabell[[#This Row],[Antal i lager]] -> 11,726.00 kr | I22: 164 | J22: 12 | K22: 150
B23: =IFERROR((Lager_Lista_Tabell[[#This Row],[Antal i lager]]<=Lager_Lista_Tabell[[#This Row],[Ordernivå]])*(Lager_Lista_Tabell[[#This Row],[Utgått?]]="")*vrdMarkering,0) -> 0 | C23: IN0020 | D23: Artikel 20 | E23: Beskr. 20 | F23: 16.00 kr | G23: 124 | H23: =Lager_Lista_Tabell[[#This Row],[Enhetspris]]*Lager_Lista_Tabell[[#This Row],[Antal i lager]] -> 1,984.00 kr | I23: 113 | J23: 14 | K23: 50
B24: =IFERROR((Lager_Lista_Tabell[[#This Row],[Antal i lager]]<=Lager_Lista_Tabell[[#This Row],[Ordernivå]])*(Lager_Lista_Tabell[[#This Row],[Utgått?]]="")*vrdMarkering,0) -> 0 | C24: IN0021 | D24: Artikel 21 | E24: Beskr. 21 | F24: 19.00 kr | G24: 112 | H24: =Lager_Lista_Tabell[[#This Row],[Enhetspris]]*Lager_Lista_Tabell[[#This Row],[Antal i lager]] -> 2,128.00 kr | I24: 75 | J24: 11 | K24: 50
B25: =IFERROR((Lager_Lista_Tabell[[#This Row],[Antal i lager]]<=Lager_Lista_Tabell[[#This Row],[Ordernivå]])*(Lager_Lista_Tabell[[#This Row],[Utgått?]]="")*vrdMarkering,0) -> 0 | C25: IN0022 | D25: Artikel 22 | E25: Beskr. 22 | F25: 24.00 kr | G25: 182 | H25: =Lager_Lista_Tabell[[#This Row],[Enhetspris]]*Lager_Lista_Tabell[[#This Row],[Antal i lager]] -> 4,368.00 kr | I25: 132 | J25: 15 | K25: 150
B26: =IFERROR((Lager_Lista_Tabell[[#This Row],[Antal i lager]]<=Lager_Lista_Tabell[[#This Row],[Ordernivå]])*(Lager_Lista_Tabell[[#This Row],[Utgått?]]="")*vrdMarkering,0) -> 0 | C26: IN0023 | D26: Artikel 23 | E26: Beskr. 23 | F26: 29.00 kr | G26: 106 | H26: =Lager_Lista_Tabell[[#This Row],[Enhetspris]]*Lager_Lista_Tabell[[#This Row],[Antal i lager]] -> 3,074.00 kr | I26: 142 | J26: 1 | K26: 150 | L26: Ja
B27: =IFERROR((Lager_Lista_Tabell[[#This Row],[Antal i lager]]<=Lager_Lista_Tabell[[#This Row],[Ordernivå]])*(Lager_Lista_Tabell[[#This Row],[Utgått?]]="")*vrdMarkering,0) -> 0 | C27: IN0024 | D27: Artikel 24 | E27: Beskr. 24 | F27: 75.00 kr | G27: 173 | H27: =Lager_Lista_Tabell[[#This Row],[Enhetspris]]*Lager_Lista_Tabell[[#This Row],[Antal i lager]] -> 12,975.00 kr | I27: 127 | J27: 9 | K27: 100
B28: =IFERROR((Lager_Lista_Tabell[[#This Row],[Antal i lager]]<=Lager_Lista_Tabell[[#This Row],[Ordernivå]])*(Lager_Lista_Tabell[[#This Row],[Utgått?]]="")*vrdMarkering,0) -> 0 | C28: IN0025 | D28: Artikel 25 | E28: Beskr. 25 | F28: 14.00 kr | G28: 28 | H28: =Lager_Lista_Tabell[[#This Row],[Enhetspris]]*Lager_Lista_Tabell[[#This Row],[Antal i lager]] -> 392.00 kr | I28: 21 | J28: 8 | K28: 50
